Cogmind - Beta 13 @@@ ROGUE MODE // 2024.05.09 @ 17:44:11 Player: Gabe+Kate4EVR Result: Destroyed by H-66 Slayer with Gauss Rifle Performance ------------- Evolutions (5) 2500 Regions Visited (8) 1600 Robots Destroyed (27) 135 Value Destroyed (476) 476 Prototype IDs (2) 40 Alien Tech Used (0) 0 Bonus (500) 500 TOTAL SCORE: 5251 Bonus ------- Entered DSFs 500 Cogmind --------- Core Integrity 0/1000 Matter 10/300 Energy 100/100 System Corruption 3% Temperature Cool (-150) Movement Core (50) Location -5/Factory Parts ------- > --- POWER (2) -------- (None) > --- PROPULSION (9) --- (None) > --- UTILITY (4) ------ Improved Cryofiber Web Advanced Cooling System Signal Interpreter > --- WEAPON (2) ------- (None) > --- INVENTORY (5) ---- Micro Fission Core Advanced Heat Sink Advanced Cooling System Heavy Rocket Launcher Spear Peak State ------------ > --- POWER ------------ Nuclear Core Light Angular Momentum Engine > --- PROPULSION ------- Improved Cesium-ion Thruster Improved Surge Thruster Improved Surge Thruster Improved Surge Thruster Improved Surge Thruster Improved Surge Thruster Biomechanical Wings > --- UTILITY ---------- Improved Cryofiber Web Small Storage Unit Visual Processing Unit Signal Interpreter > --- WEAPON ----------- Heavy Laser Rocket Launcher > --- INVENTORY -------- Angular Momentum Engine Flight Unit Flight Unit Flight Unit VTOL Module VTOL Module Heavy Rocket Launcher Spear [Rating: 61] Favorites ----------- Power Nuclear Core Engine Ion Engine Power Core Nuclear Core Propulsion Improved Surge Thruster Leg Aluminum Leg Flight Unit Improved Surge Thruster Utility Small Storage Unit Device Improved Cryofiber Web Storage Small Storage Unit Processor Signal Interpreter Protection Light Armor Plating Weapon Heavy Laser Energy Gun Heavy Laser Ballistic Gun High-powered Shotgun Launcher Rocket Launcher Piercing Weapon Spear Build | -11 -10 -9 -8 -7 -7 -6 -6 -5 ------- Run | Yrd Mat Mat Mat Fac DSF Fac Ext Fac Slots Evolved 10 | . . 2 2 2 . 2 . 2 Power 1 | . . . . . . 1 . . Propulsion 7 | . . 2 . 2 . 1 . 2 Utility 2 | . . . 2 . . . . . Weapon . | . . . . . . . . . Parts Attached 85 | 7 11 9 13 5 11 10 5 14 Power 19 | 2 . 2 1 2 4 5 1 2 Engine 10 | 2 . 2 . 1 2 2 1 . Core 9 | . . . 1 1 2 3 . 2 Reactor . | . . . . . . . . . Propulsion 40 | 2 7 2 7 2 6 4 4 6 Treads . | . . . . . . . . . Leg 4 | 2 2 . . . . . . . Wheel . | . . . . . . . . . Hover . | . . . . . . . . . Flight 36 | . 5 2 7 2 6 4 4 6 Utility 12 | 1 2 2 2 . 1 1 . 3 Device 6 | . . . 1 . 1 1 . 3 Storage 2 | 1 1 . . . . . . . Processor 3 | . . 2 1 . . . . . Hackware . | . . . . . . . . . Protection 1 | . 1 . . . . . . . Artifact . | . . . . . . . . . Weapon 14 | 2 2 3 3 1 . . . 3 Energy Gun 5 | 1 2 . . 1 . . . 1 Energy Cannon . | . . . . . . . . . Ballistic Gun 3 | 1 . 2 . . . . . . Ballistic Cannon . | . . . . . . . . . Launcher 5 | . . 1 3 . . . . 1 Special Weapon . | . . . . . . . . . Impact Weapon . | . . . . . . . . . Slashing Weapon . | . . . . . . . . . Piercing Weapon 1 | . . . . . . . . 1 Special Melee Weapon . | . . . . . . . . . Unidentified Prototypes 2 | . . . . . . 2 . . Parts Lost 29 | . 2 . 3 . . 1 9 14 Power 5 | . 1 . 1 . . . 1 2 Propulsion 19 | . 1 . 1 . . 1 6 10 Utility 3 | . . . . . . . 1 2 Weapon 2 | . . . 1 . . . 1 . Highest Loss Streak 12 | . 2 . 3 . . 1 9 12 To Critical Strikes . | . . . . . . . . . Average Slot Usage (%) 78 | . 73 86 86 90 94 93 92 37 Engine 4 | . 11 8 . 1 . 4 4 . Core 3 | . . . 8 5 6 4 6 . Leg 4 | . 17 . . . . . . . Flight 29 | . 6 44 35 46 46 44 43 10 Device 3 | . . . . . 3 6 6 9 Storage 7 | . 14 11 9 7 7 6 4 . Processor 9 | . . 6 17 15 15 13 13 10 Energy Gun 5 | . 12 . . 5 7 6 4 . Ballistic Gun 4 | . 8 12 11 . . . . . Launcher 3 | . . 3 6 7 7 6 4 . Naked Turns . | . . . . . . . . . Heaviest Build 30 | 13 16 14 16 20 21 30 30 23 Greatest Support 40 | 20 20 16 17 24 24 40 40 37 Greatest Overweight (x) 4 | . 3 . . . 4 1 1 2 Average Overweight (x) . | . . . . . . . . . Largest Inventory Capacity 8 | 8 8 8 8 8 8 8 8 5 Average Capacity 7 | 7 7 8 8 8 8 8 7 5 Most Carried 8 | 2 8 8 8 8 8 8 7 5 Average Carried 6 | . 5 7 7 5 7 7 6 4 Final Capacity 8 | 8 8 8 8 8 8 8 5 5 Final Carried 8 | 2 8 8 7 8 8 7 4 5 Class Distribution -------------------- 49% | Sprinter 39% | Mutant 5% | Scavenger-Sprinter 4% | Scavenger-Mutant Dominant Class ---------------- Mutant | -10/Materials Sprinter | -9/Materials Sprinter | -8/Materials Scavenger-Sprinter | -7/Factory Sprinter | -7/DSF Sprinter | -6/Factory Sprinter | -6/Extension Mutant | -5/Factory Resources | -11 -10 -9 -8 -7 -7 -6 -6 -5 ----------- Run | Yrd Mat Mat Mat Fac DSF Fac Ext Fac Matter Collected 933 | 256 116 135 114 . 273 . 4 35 Remotely . | . . . . . . . . . Salvage Created 674 | . 467 82 21 . . 73 . 31 Parts 64 | . 24 13 7 . . 12 . 8 Haulers Intercepted 2 | . 1 1 . . . . . . Recyclers Shooed 3 | . 2 . . . . 1 . . Parts Field Recycled . | . . . . . . . . . Retrieved Matter . | . . . . . . . . . Parts Self-Destructed . | . . . . . . . . . Prevented . | . . . . . . . . . Kills | -11 -10 -9 -8 -7 -7 -6 -6 -5 ------- Run | Yrd Mat Mat Mat Fac DSF Fac Ext Fac Combat Hostiles Destroyed 16 | . 6 1 3 . . 4 . 2 Guns 9 | . 6 . 2 . . . . 1 AOE 7 | . . 1 1 . . 4 . 1 Classes Destroyed 8 | . 6 . . . . 1 . 1 Worker 3 | . 1 1 . . . 1 . . Builder 1 | . . . . . . 1 . . Hauler 2 | . 1 1 . . . . . . Recycler 2 | . 2 . . . . . . . Watcher 3 | . 1 2 . . . . . . Swarmer 10 | . 3 . 3 . . 4 . . Cutter 2 | . . . . . . . . 2 Grunt 4 | . 3 1 . . . . . . Best Kill Streak 6 | . 4 2 3 . . 6 . 2 Combat Bots Only 4 | . 3 1 3 . . 4 . 2 Max Kills in Single Turn 3 | . 1 2 3 . . 2 . 1 Gunslinging . | . . . . . . . . . Exploded 1 | . . 1 1 . . 1 . 1 Melee . | . . . . . . . . . Uniques/NPCs Destroyed . | . . . . . . . . . Combat | -11 -10 -9 -8 -7 -7 -6 -6 -5 -------- Run | Yrd Mat Mat Mat Fac DSF Fac Ext Fac Hostile Shots Fired 390 | . 46 16 38 . 4 109 63 114 Missed 179 | . 15 10 19 . 2 47 36 50 Damage Taken 3607 | . 314 104 351 . 28 718 364 1728 Core 1454 | . 157 13 44 . . 137 101 1002 Absorbed by Shields . | . . . . . . . . . Core Remaining (%) 82 | 100 37 96 92 . 100 . 72 . Volleys Fired 42 | . 18 11 2 . . 9 . 2 Largest 2 | . 2 2 2 . . 2 . 1 Hottest 102 | . 90 50 55 . . 102 . 69 Shots Fired 73 | . 36 15 4 . . 16 . 2 Gun 56 | . 36 8 2 . . 9 . 1 Cannon . | . . . . . . . . . Launcher 17 | . . 7 2 . . 7 . 1 Special . | . . . . . . . . . Kinetic 24 | . 14 8 2 . . . . . Thermal 24 | . 14 . . . . 9 . 1 Explosive 17 | . . 7 2 . . 7 . 1 Electromagnetic 8 | . 8 . . . . . . . Robot Hit Streak 5 | . 5 3 1 . . 2 . 1 Robot Miss Streak 6 | . 3 6 2 . . 6 . 2 Penetration Max . | . . . . . . . . . Secondary Targets 1 | . 1 . . . . . . . Max Gunslinging Chain 1 | . 1 . . . . . . . Shots Hit Robots 34 | . 24 5 1 . . 3 . 1 Core Hits 42 | . 14 9 3 . . 13 . 3 Critical Kills . | . . . . . . . . . Critical Parts Destroyed 1 | . 1 . . . . . . . Critical Strikes 2 | . 1 . . . . 1 . . Burn 1 | . . . . . . 1 . . Destroy 1 | . 1 . . . . . . . Melee Attacks 2 | . . . . . . . . 2 Impact . | . . . . . . . . . Slashing . | . . . . . . . . . Piercing 2 | . . . . . . . . 2 Sneak Attacks . | . . . . . . . . . Combat Hostiles . | . . . . . . . . . Follow-up Attacks . | . . . . . . . . . Damage Inflicted 1305 | . 357 222 118 . . 511 . 97 Guns 457 | . 323 51 27 . . 37 . 19 Cannons . | . . . . . . . . . Explosions 848 | . 34 171 91 . . 474 . 78 Melee . | . . . . . . . . . Ramming . | . . . . . . . . . Kinetic 213 | . 135 51 27 . . . . . Thermal 201 | . 145 . . . . 37 . 19 Explosive 814 | . . 171 91 . . 474 . 78 Electromagnetic 77 | . 77 . . . . . . . Impact . | . . . . . . . . . Slashing . | . . . . . . . . . Piercing . | . . . . . . . . . Highest Corruption 3 | . 2 . . . . 2 2 3 Average Corruption 2 | . 2 . . . . 1 2 3 Corruption Purged . | . . . . . . . . . Corruption Blocked . | . . . . . . . . . Effects 5 | . . . . . . . 2 3 Message Errors 1 | . . . . . . . . 1 Matter Fused 1 | . . . . . . . . 1 Energy Discharges 1 | . . . . . . . 1 . Parts Fused 1 | . . . . . . . 1 . Alerts 1 | . . . . . . . . 1 Overload Shots . | . . . . . . . . . Overflow Damage 8 | . . . 7 . . 1 . . Projectiles . | . . . . . . . . . Explosions 8 | . . . 7 . . 1 . . Melee . | . . . . . . . . . Knockbacks . | . . . . . . . . . Impact . | . . . . . . . . . Kinetic . | . . . . . . . . . Secondary . | . . . . . . . . . Self-Inflicted Damage 124 | . . 15 23 . . 86 . . Shots 5 | . . 1 1 . . 3 . . Rammed . | . . . . . . . . . Targets Rammed . | . . . . . . . . . Kicked . | . . . . . . . . . Crushed . | . . . . . . . . . Highest Temperature 539 | . 42 9 7 36 30 539 226 34 Average Temperature 192 | . 21 3 3 16 11 265 76 22 Received Heat Transfer 700 | . 138 18 108 . . 96 72 268 Effects 9 | . . . . . . 9 . . Shutdowns 1 | . . . . . . 1 . . Energy Bleed 3 | . . . . . . 3 . . Interference 3 | . . . . . . 3 . . Matter Decay 1 | . . . . . . 1 . . Damage (minor) 1 | . . . . . . 1 . . Siege Activations . | . . . . . . . . . Robots Corrupted . | . . . . . . . . . Combat Hostiles . | . . . . . . . . . Parts Fried . | . . . . . . . . . Impact Corruptions . | . . . . . . . . . Robots Melted . | . . . . . . . . . Combat Hostiles . | . . . . . . . . . Parts Melted . | . . . . . . . . . Heat Transferred 535 | . 350 . . . . 148 . 37 Parts Sabotaged . | . . . . . . . . . Parts Stolen . | . . . . . . . . . Parts Stripped . | . . . . . . . . . Power Chain Reactions 1 | . 1 . . . . . . . Alert | -11 -10 -9 -8 -7 -7 -6 -6 -5 ------- Run | Yrd Mat Mat Mat Fac DSF Fac Ext Fac Peak Influence 396 | . 210 167 396 186 130 341 186 209 Initial 186 | . . 88 70 186 130 67 166 58 Average 118 | . 101 83 166 186 130 134 154 100 Maximum Alert Level 1 | . 1 . 1 . . 1 . 1 Low Security (%) 89 | 100 86 100 67 100 100 77 100 98 Level 1 10 | . 13 . 32 . . 22 . 1 Level 2 . | . . . . . . . . . Level 3 . | . . . . . . . . . Level 4 . | . . . . . . . . . Level 5 . | . . . . . . . . . High Security . | . . . . . . . . . Max Security . | . . . . . . . . . Squads Dispatched 9 | . 1 2 1 . 1 2 . 2 Investigation 2 | . . 1 . . . 1 . . Extermination 1 | . . . . . . 1 . . Reinforcement 6 | . 1 1 1 . 1 . . 2 Assault . | . . . . . . . . . Garrison . | . . . . . . . . . Intercept . | . . . . . . . . . Searches Triggered . | . . . . . . . . . Construction Impeded . | . . . . . . . . . Haulers Reinforced . | . . . . . . . . . Active Scanning Responses . | . . . . . . . . . Cargo Convoy Interrupts . | . . . . . . . . . Stealth | -11 -10 -9 -8 -7 -7 -6 -6 -5 --------- Run | Yrd Mat Mat Mat Fac DSF Fac Ext Fac Distress Signals 9 | . 1 3 3 . . 1 1 . Communications Jammed . | . . . . . . . . . Distress Signals . | . . . . . . . . . Times Spotted 109 | . 11 15 26 . 3 20 8 26 Peak Tracking Total 16 | . 5 15 16 . 3 8 8 8 Tactical Retreats 12 | . . . 4 . . 3 1 4 Traps | -11 -10 -9 -8 -7 -7 -6 -6 -5 ------- Run | Yrd Mat Mat Mat Fac DSF Fac Ext Fac Traps Triggered 3 | . 1 . . . 2 . . . Indirectly . | . . . . . . . . . Trap Hack Attempts . | . . . . . . . . . Triggered . | . . . . . . . . . Disarmed . | . . . . . . . . . Reprogrammed . | . . . . . . . . . Reused . | . . . . . . . . . Traps Extracted . | . . . . . . . . . Installed . | . . . . . . . . . Triggered . | . . . . . . . . . Machines | -11 -10 -9 -8 -7 -7 -6 -6 -5 ---------- Run | Yrd Mat Mat Mat Fac DSF Fac Ext Fac Machines Disabled 3 | . . . 1 . . 1 . 1 Max in Single Turn 1 | . . . 1 . . 1 . 1 Machines Repaired . | . . . . . . . . . Machines Dismantled . | . . . . . . . . . Machines Sabotaged . | . . . . . . . . . Overloaded Fab Kills . | . . . . . . . . . Hacking | -11 -10 -9 -8 -7 -7 -6 -6 -5 --------- Run | Yrd Mat Mat Mat Fac DSF Fac Ext Fac Machines Accessed 15 | . 1 2 3 1 . 6 . 2 Terminals 15 | . 1 2 3 1 . 6 . 2 Fabricators . | . . . . . . . . . Repair Stations . | . . . . . . . . . Recycling Units . | . . . . . . . . . Scanalyzers . | . . . . . . . . . Garrison Access . | . . . . . . . . . Total Hacks 30 | . 4 4 4 3 . 12 . 3 Successful 13 | . . 2 2 1 . 6 . 2 Failed 17 | . 4 2 2 2 . 6 . 1 Catastrophic 6 | . 1 2 1 . . 2 . . Database Lockouts . | . . . . . . . . . Manual 18 | . 4 3 4 . . 6 . 1 Terminals 30 | . 4 4 4 3 . 12 . 3 Fabricators . | . . . . . . . . . Repair Stations . | . . . . . . . . . Recycling Units . | . . . . . . . . . Scanalyzers . | . . . . . . . . . Garrison Access . | . . . . . . . . . Terminal Hacks 12 | . . 2 1 1 . 6 . 2 Open Door 1 | . . . . . . 1 . . Open DSF 3 | . . . . 1 . 1 . 1 Unreport Threat 6 | . . 1 1 . . 3 . 1 Locate Traps 1 | . . 1 . . . . . . Zone Layout 1 | . . . . . . 1 . . Fabricator Hacks . | . . . . . . . . . Repair Station Hacks . | . . . . . . . . . Recycling Unit Hacks . | . . . . . . . . . Scanalyzer . | . . . . . . . . . Garrison Access Hacks . | . . . . . . . . . Unauthorized Hacks 1 | . . . 1 . . . . . Terminals 1 | . . . 1 . . . . . Assimilate 1 | . . . 1 . . . . . Fabricators . | . . . . . . . . . Repair Stations . | . . . . . . . . . Recycling Units . | . . . . . . . . . Scanalyzers . | . . . . . . . . . Garrison Access . | . . . . . . . . . Data Cores Recovered . | . . . . . . . . . Used . | . . . . . . . . . Hacking Detections 11 | . 1 1 2 1 . 5 . 1 Full Trace Events 2 | . . 1 . . . 1 . . Feedback Events . | . . . . . . . . . Feedback Blocked . | . . . . . . . . . Robot Schematics Acquired . | . . . . . . . . . Robots Built . | . . . . . . . . . Authchips . | . . . . . . . . . Time . | . . . . . . . . . Total Robot Build Rating . | . . . . . . . . . Part Schematics Acquired . | . . . . . . . . . Parts Built . | . . . . . . . . . Authchips . | . . . . . . . . . Time . | . . . . . . . . . Total Part Build Rating . | . . . . . . . . . Parts Repaired . | . . . . . . . . . Time . | . . . . . . . . . Parts Recycled . | . . . . . . . . . Recycled Matter . | . . . . . . . . . Retrieved Matter . | . . . . . . . . . Retrieved Components . | . . . . . . . . . Parts Scanalyzed . | . . . . . . . . . Part Schematics Acquired . | . . . . . . . . . Parts Damaged . | . . . . . . . . . Bothacking | -11 -10 -9 -8 -7 -7 -6 -6 -5 ------------ Run | Yrd Mat Mat Mat Fac DSF Fac Ext Fac Used RIF Installer . | . . . . . . . . . Robots Hacked . | . . . . . . . . . Non-combat . | . . . . . . . . . Combat . | . . . . . . . . . Robot Hacks Applied . | . . . . . . . . . Relay Couplers Released . | . . . . . . . . . Fabnet Peak Effective % . | . . . . . . . . . Robots Rewired . | . . . . . . . . . Allies Hacked . | . . . . . . . . . Hacks Repelled . | . . . . . . . . . Allies | -11 -10 -9 -8 -7 -7 -6 -6 -5 -------- Run | Yrd Mat Mat Mat Fac DSF Fac Ext Fac Total Allies 1 | . . . 1 . . . . . Largest Group 1 | . . . 1 . . . . . Highest-Rated Group 10 | . . . 10 . . . . . Highest-Rated Ally 10 | . . . 10 . . . . . Total Orders . | . . . . . . . . . Ally Attacks . | . . . . . . . . . Total Damage . | . . . . . . . . . Kills . | . . . . . . . . . Allies Corrupted . | . . . . . . . . . Allies Melted . | . . . . . . . . . Intel | -11 -10 -9 -8 -7 -7 -6 -6 -5 ------- Run | Yrd Mat Mat Mat Fac DSF Fac Ext Fac Robot Analysis Total . | . . . . . . . . . Derelict Logs Recovered . | . . . . . . . . . Drone Launches . | . . . . . . . . . Drone Recoveries . | . . . . . . . . . Exploration | -11 -10 -9 -8 -7 -7 -6 -6 -5 ------------- Run | Yrd Mat Mat Mat Fac DSF Fac Ext Fac Turns Passed 1795 | 64 398 178 186 50 138 366 151 264 Spaces Moved 2753 | 47 250 344 458 125 171 547 274 537 Core 116 | 4 23 . . . 2 . . 87 Treads . | . . . . . . . . . Legs 201 | 43 158 . . . . . . . Wheels . | . . . . . . . . . Hover . | . . . . . . . . . Flight 2436 | . 69 344 458 125 169 547 274 450 Fastest Speed 5 | 50 37 31 29 25 15 5 6 18 Average Speed 36 | 114 120 31 29 25 19 13 18 38 Slowest Speed 280 | 120 280 31 34 25 250 65 100 181 Overloaded Moves 88 | . . . . . . 14 54 20 Propulsion Burnouts 2 | . . . . . . . 2 . Robots Hopped 34 | . . 2 9 . . 7 8 8 Cave-ins Triggered . | . . . . . . . . . Exploration Rate (%) 37 | 4 51 36 58 2 96 22 46 18 Regions Visited 8 Branch Regions 1 Pre-discovered Areas . | . . . . . . . . . Known Exits Taken 5 | . . 1 1 1 . 1 1 . Unknown Exits Taken 2 | 1 1 . . . . . . . Scrap Searched . | . . . . . . . . . Spaces Dug 12 | . . . 5 . . 7 . . Terrain Destroyed 101 | . 1 35 11 . . 43 . 11 Melee . | . . . . . . . . . Projectile . | . . . . . . . . . AOE 101 | . 1 35 11 . . 43 . 11 Terrain Rammed . | . . . . . . . . . Walls Destroyed . | . . . . . . . . . Machines Disabled . | . . . . . . . . . Actions | -11 -10 -9 -8 -7 -7 -6 -6 -5 --------- Run | Yrd Mat Mat Mat Fac DSF Fac Ext Fac Total 3461 | 54 320 397 504 141 285 815 366 579 Wait 464 | . 8 29 14 9 44 245 95 20 Move 2685 | 46 249 339 440 124 170 533 260 524 Hop 26 | . . 2 8 . . 6 5 5 Pick Up 47 | 1 15 2 10 3 8 3 . 5 Fast Attach 38 | 6 8 5 3 1 1 5 1 8 Attach 25 | . 3 3 1 3 2 4 4 5 Detach 12 | . 3 2 . . . 2 1 4 Swap 22 | 1 . 1 9 1 8 1 . 1 Drop 62 | . 16 3 17 . 16 7 . 3 Fire 42 | . 18 11 2 . . 9 . 2 Melee 2 | . . . . . . . . 2 Ram . | . . . . . . . . . Kick . | . . . . . . . . . Crush . | . . . . . . . . . Escape Stasis 36 | . . . . . 36 . . . Rewire . | . . . . . . . . . Trap . | . . . . . . . . . Miscellaneous . | . . . . . . . . . Route ------- -11/Scrapyard -10/Materials -9/Materials (discovered 2 exits: *Mat / *Min) -8/Materials (discovered 2 exits: *Fac / *Sto) -7/Factory -7/DSF -6/Factory -6/Extension (discovered 2 exits: *Fac / *Cet) -5/Factory History --------- Turn | Location | Event 3 | -11/Scrapyard | Discovered new exit (range 15) 65 | -11/Scrapyard | Entered Materials 340 | -10/Materials | Build established: Mutant 366 | -10/Materials | Discovered new exit (range 15) 389 | -10/Materials | Core integrity fell below 50% 463 | -10/Materials | Entered another Materials area 463 | -9/Materials | Evolved 2 slots: Propulsion x2 515 | -9/Materials | Discovered new exit (range 12) 629 | -9/Materials | Identified exit to Mines 636 | -9/Materials | Discovered new exit (range 15) 641 | -9/Materials | Identified exit to Materials 641 | -9/Materials | Entered another Materials area 641 | -8/Materials | Evolved 2 slots: Utility x2 748 | -8/Materials | Build established: Sprinter 774 | -8/Materials | Discovered new exit (range 17) 791 | -8/Materials | Identified exit to Storage 823 | -8/Materials | Discovered new exit (range 10) 826 | -8/Materials | Identified exit to Factory 827 | -8/Materials | Entered Factory 827 | -7/Factory | Evolved 2 slots: Propulsion x2 839 | -7/Factory | Lost 3 parts (1p1n1w) 877 | -7/Factory | Identified exit to DSF 877 | -7/Factory | Entered DSF 878 | -7/DSF | Joined Warlord attack on 0b10 via DSF 904 | -7/DSF | Additional patrols routed to DSF 935 | -7/DSF | Discovered new exit (range 18) 1014 | -7/DSF | Identified exit to Factory 1015 | -7/DSF | Entered Factory 1015 | -6/Factory | Evolved 2 slots: Power x1, Propulsion x1 1020 | -6/Factory | 1 allies followed out of DSF 1379 | -6/Factory | Discovered new exit (range 6) 1381 | -6/Factory | Identified exit to Extension 1381 | -6/Factory | Entered Extension 1495 | -6/Extension | Spotted B-75 Beast 1495 | -6/Extension | Spotted B-75 Beast 1523 | -6/Extension | Discovered new exit (range 18) 1523 | -6/Extension | Discovered new exit (range 17) 1527 | -6/Extension | Identified exit to Factory 1528 | -6/Extension | Identified exit to Cetus 1532 | -6/Extension | Entered Factory 1532 | -5/Factory | Evolved 2 slots: Propulsion x2 1535 | -5/Factory | Lost 9 parts (1p6n1u1w) 1628 | -5/Factory | Core integrity fell below 50% 1688 | -5/Factory | Lost 12 parts (2p9n1u) 1754 | -5/Factory | Core integrity fell below 20% 1796 | -5/Factory | Destroyed by H-66 Slayer with Gauss Rifle Last Messages --------------- 01714_ Connecting with Terminal... >>Alert(Purge) Purged threat record, alert level lowered. 01736_ Connecting with DSF Access... 01745_ Dropped Hvy. Rocket Launcher. 01746_ Dropped Hvy. Laser. 01746_ Acquired Adv. Heat Sink. 01748_ Acquired Hvy. Rocket Launcher. 01753_ Critical hit (Burn: +37). 01755_ Slug penetrates Wall. 01758_ Critical hit (Burn: +37). 01761_ Field Propulsion Drive destroyed. 01761_ Slug penetrates Wall. 01764_ Penetrated by Slug. 01766_ SJT&XRP%GJBW M91>IIF/Y3P0D/MZYDD 01766_ Penetrated by Slug. 01766_ Visual Processing Unit destroyed. 01789_ Slug penetrates Wall. 01792_ Penetrated by Slug. 01793_ Slug penetrates R-10 Processor. Map ----- +----------------------------------------------------+ | ?????????????????????????????????????????????????? | | ?????????????????????????????????????????????????? | | ?????????????????????????????????????????????????? | | ?????????????????????????????????????????????????? | | ?????????????????????????????????????????????????? | | ?????????????????????????????????????????????????? | | ?????????????????????????????????????????????????? | | ?????????????????????????????????????????????????? | | ?????????????????????????????????????????????????? | | ?????????????????????????????????????????????????? | | ???????????????????????? ?????????????????????? | | ???????????????????????? ???????????????????? | | ???????????????????????? #?################# | | ???????????????????????# #?# # | | ??????????????????????## ### """ # | | ??????????????????????# ## """ *# | | ??????????????????????# ## """ # | | ??????????????????????# ## ##+###### | | ??????????????????????# ##!! + #????? | | ??????????????????????# Y ##!! ## #????? | | ??????????????????????# ## ## #????? | | ??????????????????????# ## ## #????? | | ??????????????????????? ## """ ## #????? | | ???????????????????????? ## """ ## #####? | | ????????????????????????# #??# """ ## #? | | ????????????????????????#@ #??# ## #? | | ????????????????????????# #??# """ ## #? | | ????????????????????????# #??# """ ## #? | | ????????????????????????# #??# """ + #? | | ????????????????????????# #??# # #? | | ?????????????????????#### #######"#### ## | | ??????????????? # | | ????????????? # | | ?????????????? # | | ?????????????? # | | ??????????????? # | | ?????????????? h # | | ??????????????? R # | | ???????????????####+###################### # | | ????????????????????????????????????????## # | | ????????????????????????????????????????# | | ????????????????????????????????????????# | | ????????????????????????????????????????# | | ????????????????????????????????????????# | | ????????????????????????????????????????# | | ????????????????????????????????????????# | | ????????????????????????????????????????# | | ????????????????????????????????????????# | | ????????????????????????????????????????# | | ????????????????????????????????????????### ## | +----------------------------------------------------+ Best States ------------- Heat Dissipation 71 Energy Generation 27 Energy Capacity 440 Matter Stores 300 Matter Capacity 300 Sight Range 18 Terrain Scan Density 10 Jamming Range 12 Additional Mass Support 9 Base Temperature (-) 150 Armor Coverage 150 Evasion (%) 67 Salvage Targeting 1 Item Schematics ----------------- None Robot Schematics ------------------ None Fabricated ------------ Nothing Alien Tech Used ----------------- None Achievements -------------- Supersonic Whoosh! Challenges ------------ None Game ------ Seed TargetingGravitonGenerator Manual? 0 Play Time 00:30:48 Cumulative 160.8 hours Start 2024.05.09 @ 17:16:38 End 2024.05.09 @ 17:44:11 Sessions 1 Manual Loads 0 Difficulty Rogue Special Mode None Game No. 320 Rogue 320 Adventurer 0 Explorer 0 Win Type - Total 0 Types 0/0/0/0/0/0/0/0/0 Lore% 39 Gallery% 60 Achievement% 42 Wizard Run 0 Options --------- Layout 0 ASCII 0 Keyboard 1 Movement Numpad Keybinds 0 Fullscreen 2 Font 18/X11 Map View 76x50 Zoom Use 0% Tactical HUD 1 Map Filters NONE Filters NONE Steam 1 RUN: 99d3aead-d598-4137-be94-b2d87ca9cdc9